Cogmind - Beta 12 X4 @@@ ROGUE MODE // 2022.09.22 @ 11:20:47 Player: btmk16 Result: Self-destructed Performance ------------- Evolutions (3) 1500 Regions Visited (6) 1200 Robots Destroyed (60) 300 Value Destroyed (1552) 1552 Prototype IDs (11) 220 Alien Tech Used (0) 0 Bonus (238) 238 TOTAL SCORE: 5010 Bonus ------- High Alert Combat Kills 78 Follower Combat Kills 160 Cogmind --------- Core Integrity 700/700 Matter 300/300 Energy 88/100 System Corruption 0% Temperature Cool (0) Movement Treading (152) Location -7/Factory Parts ------- > --- POWER (1) -------- (None) > --- PROPULSION (4) --- Light Treads Improved Treads Advanced Treads Advanced Treads > --- UTILITY (6) ------ Improved Heat Sink Large Storage Unit > --- WEAPON (2) ------- Heavy Particle Gun Heavy Particle Gun > --- INVENTORY (15) --- Improved Deuterium Engine Advanced Weight Redist. System Machine Analyzer Experimental Sensor Array Improved Terrain Scanner Improved Terrain Scan Processor Improved Light Armor Plating Hardlight Generator Thief Drone Bay (3/3) Minigun Rocket Launcher Great Maul Peak State ------------ > --- POWER ------------ Improved Deuterium Engine > --- PROPULSION ------- Light Treads Improved Treads Advanced Treads Advanced Treads > --- UTILITY ---------- Scrap Engine Improved Heat Sink Large Storage Unit Improved Light Armor Plating Hardlight Generator > --- WEAPON ----------- Heavy Particle Gun Heavy Particle Gun > --- INVENTORY -------- Improved Deuterium Engine Improved Treads Improved Treads Improved Treads Improved Treads Advanced Weight Redist. System Machine Analyzer Experimental Sensor Array Improved Terrain Scanner Improved Terrain Scan Processor Improved Light Armor Plating Thief Drone Bay Minigun Rocket Launcher Great Maul [Rating: 52] Favorites ----------- Power Ion Engine Engine Ion Engine Propulsion Light Treads Treads Light Treads Utility Large Storage Unit Device Improved Heat Sink Storage Large Storage Unit Hackware System Shield Protection Improved Light Armor Plating Weapon Heavy Particle Gun Energy Gun Heavy Particle Gun Ballistic Gun Light Assault Rifle Launcher Grenade Launcher Build | -11 -10 -10 -10 -9 -8 -7 ------- Run | Scr Mat Min Exi Min Mat Fac Slots Evolved 6 | . . . . . 4 2 Power . | . . . . . . . Propulsion 2 | . . . . . 1 1 Utility 4 | . . . . . 3 1 Weapon . | . . . . . . . Parts Attached 63 | 7 12 3 1 . 36 4 Power 7 | 1 2 . . . 4 . Engine 7 | 1 2 . . . 4 . Core . | . . . . . . . Reactor . | . . . . . . . Propulsion 13 | 2 . 1 . . 9 1 Treads 13 | 2 . 1 . . 9 1 Leg . | . . . . . . . Wheel . | . . . . . . . Hover . | . . . . . . . Flight . | . . . . . . . Utility 24 | 2 3 1 1 . 14 3 Device 8 | 1 . . . . 6 1 Storage 6 | 1 3 1 1 . . . Processor . | . . . . . . . Hackware 1 | . . . . . . 1 Protection 9 | . . . . . 8 1 Artifact . | . . . . . . . Weapon 19 | 2 7 1 . . 9 . Energy Gun 6 | . . . . . 6 . Energy Cannon . | . . . . . . . Ballistic Gun 7 | 2 3 1 . . 1 . Ballistic Cannon . | . . . . . . . Launcher 6 | . 4 . . . 2 . Special Weapon . | . . . . . . . Impact Weapon . | . . . . . . . Slashing Weapon . | . . . . . . . Piercing Weapon . | . . . . . . . Special Melee Weapon . | . . . . . . . Unidentified Prototypes 5 | . . . . . 5 . Parts Lost 5 | . 2 1 . . 1 1 Power 1 | . 1 . . . . . Propulsion 1 | . . 1 . . . . Utility 2 | . 1 . . . . 1 Weapon 1 | . . . . . 1 . Highest Loss Streak 2 | . 2 1 . . 1 1 To Critical Strikes . | . . . . . . . Average Slot Usage (%) 98 | . 97 100 100 100 99 89 Engine 11 | . 14 14 14 14 8 6 Treads 27 | . 28 28 28 28 26 28 Device 8 | . 6 . . . 16 16 Storage 21 | . 19 28 28 28 18 13 Protection 5 | . . . . . 10 6 Energy Gun 6 | . . . . . 14 15 Ballistic Gun 16 | . 27 28 28 28 3 . Naked Turns . | . . . . . . . Heaviest Build 53 | 14 31 31 31 31 53 48 Greatest Support 87 | 40 40 40 40 40 69 87 Greatest Overweight (x) . | . . . . . . . Average Overweight (x) . | . . . . . . . Largest Inventory Capacity 15 | 8 15 15 15 15 15 15 Average Capacity 14 | 7 13 15 15 15 15 15 Most Carried 15 | 6 15 15 15 15 15 15 Average Carried 14 | 4 12 14 15 14 14 14 Final Capacity 15 | 8 15 15 15 15 15 15 Final Carried 15 | 6 14 15 15 15 15 12 Scrap Engine Consumption 6 | . . . . . . 6 Class Distribution -------------------- 100% | Mutant Dominant Class ---------------- Mutant | -10/Materials Mutant | -10/Mines Mutant | -10/Exiles Mutant | -9/Mines Mutant | -8/Materials Mutant | -7/Factory Resources | -11 -10 -10 -10 -9 -8 -7 ----------- Run | Scr Mat Min Exi Min Mat Fac Matter Collected 1437 | 318 122 183 150 185 469 10 Remotely . | . . . . . . . Salvage Created 2221 | 99 303 156 . . 1663 . Parts 114 | 5 26 7 . . 76 . Haulers Intercepted 7 | . 2 . . . 5 . Recyclers Shooed 1 | 1 . . . . . . Parts Field Recycled . | . . . . . . . Retrieved Matter . | . . . . . . . Parts Self-Destructed . | . . . . . . . Prevented . | . . . . . . . Kills | -11 -10 -10 -10 -9 -8 -7 ------- Run | Scr Mat Min Exi Min Mat Fac Combat Hostiles Destroyed 40 | . 11 4 . . 25 . Guns 30 | . 2 3 . . 25 . AOE 10 | . 9 1 . . . . Classes Destroyed 10 | 2 5 . . . 3 . Worker 3 | . 1 . . . 2 . Builder 2 | . 1 . . . 1 . Tunneler 3 | 2 . . . . 1 . Hauler 7 | . 2 . . . 5 . Recycler 3 | 1 . . . . 2 . Operator 1 | . . . . . 1 . Watcher 1 | . . . . . 1 . Swarmer 10 | . 6 . . . 4 . Grunt 22 | . 5 4 . . 13 . Sentry 8 | . . . . . 8 . Best Kill Streak 8 | 3 8 2 . . 6 . Combat Bots Only 6 | . 6 2 . . 4 . Max Kills in Single Turn 3 | 1 3 1 . . 2 . Gunslinging . | . . . . . . . Exploded 3 | . 3 1 . . . . Melee . | . . . . . . . Uniques/NPCs Destroyed . | . . . . . . . Combat | -11 -10 -10 -10 -9 -8 -7 -------- Run | Scr Mat Min Exi Min Mat Fac Damage Taken 2178 | . 378 201 . 27 1572 . Core 242 | . 33 41 . . 168 . Absorbed by Shields 208 | . . . . . 208 . Regen/Repaired (Parts) 130 | . . . . . 130 . Core Remaining (%) 79 | 100 . . . 70 69 . Volleys Fired 183 | 12 29 12 . 7 123 . Largest 2 | 2 2 2 . 2 2 . Hottest 110 | 40 50 40 . 40 110 . Shots Fired 343 | 24 53 22 . 14 230 . Gun 332 | 24 45 20 . 14 229 . Cannon . | . . . . . . . Launcher 11 | . 8 2 . . 1 . Special . | . . . . . . . Kinetic 158 | 24 45 20 . 14 55 . Thermal 174 | . . . . . 174 . Explosive 11 | . 8 2 . . 1 . Electromagnetic . | . . . . . . . Robot Hit Streak 13 | 7 10 8 . 3 13 . Robot Miss Streak 4 | 2 3 1 . 2 4 . Penetration Max . | . . . . . . . Secondary Targets 2 | . . 1 . . 1 . Max Gunslinging Chain 1 | . . 1 . . 1 . Shots Hit Robots 221 | 18 24 15 . 7 157 . Core Hits 113 | 5 27 11 . 2 68 . Critical Kills . | . . . . . . . Critical Parts Destroyed 1 | 1 . . . . . . Critical Strikes 3 | 1 . . . . 2 . Burn 2 | . . . . . 2 . Destroy 1 | 1 . . . . . . Melee Attacks . | . . . . . . . Impact . | . . . . . . . Slashing . | . . . . . . . Piercing . | . . . . . . . Sneak Attacks . | . . . . . . . Combat Hostiles . | . . . . . . . Follow-up Attacks . | . . . . . . . Damage Inflicted 4211 | 215 987 223 . 68 2718 . Guns 3423 | 215 290 158 . 68 2692 . Cannons . | . . . . . . . Explosions 762 | . 697 65 . . . . Melee . | . . . . . . . Ramming 26 | . . . . . 26 . Kinetic 1253 | 215 290 158 . 68 522 . Thermal 2170 | . . . . . 2170 . Explosive 762 | . 697 65 . . . . Electromagnetic . | . . . . . . . Impact . | . . . . . . . Slashing . | . . . . . . . Piercing . | . . . . . . . Highest Corruption . | . . . . . . . Average Corruption . | . . . . . . . Corruption Purged . | . . . . . . . Corruption Blocked . | . . . . . . . Overload Shots . | . . . . . . . Overflow Damage 17 | . 17 . . . . . Projectiles . | . . . . . . . Explosions 17 | . 17 . . . . . Melee . | . . . . . . . Knockbacks . | . . . . . . . Impact . | . . . . . . . Kinetic . | . . . . . . . Secondary . | . . . . . . . Self-Inflicted Damage 82 | . 62 20 . . . . Shots 4 | . 3 1 . . . . Rammed 4 | . . . . . 4 . Targets Rammed 4 | . . . . . 4 . Kicked . | . . . . . . . Crushed . | . . . . . . . Highest Temperature 252 | . 15 18 . . 252 . Average Temperature 43 | . 8 9 . . 48 . Received Heat Transfer 1057 | . 141 75 . 15 826 . Siege Activations . | . . . . . . . Robots Corrupted . | . . . . . . . Combat Hostiles . | . . . . . . . Parts Fried . | . . . . . . . Impact Corruptions . | . . . . . . . Robots Melted . | . . . . . . . Combat Hostiles . | . . . . . . . Parts Melted 8 | . . . . . 8 . Heat Transferred 4551 | . . . . . 4551 . Parts Sabotaged . | . . . . . . . Parts Stolen . | . . . . . . . Parts Stripped . | . . . . . . . Power Chain Reactions . | . . . . . . . Missiles Intercepted . | . . . . . . . Alert | -11 -10 -10 -10 -9 -8 -7 ------- Run | Scr Mat Min Exi Min Mat Fac Peak Influence 622 | 15 311 171 . 81 622 283 Initial 279 | . 9 42 . . 20 279 Average 195 | 7 145 112 . 9 311 281 Maximum Alert Level 2 | . 1 . . . 2 1 Low Security (%) 60 | 100 61 100 . 100 39 . Level 1 19 | . 38 . . . 16 100 Level 2 19 | . . . . . 43 . Level 3 . | . . . . . . . Level 4 . | . . . . . . . Level 5 . | . . . . . . . High Security . | . . . . . . . Max Security . | . . . . . . . Squads Dispatched 2 | . 1 . . . . 1 Investigation 2 | . 1 . . . . 1 Extermination . | . . . . . . . Reinforcement . | . . . . . . . Assault . | . . . . . . . Garrison . | . . . . . . . Intercept . | . . . . . . . Searches Triggered . | . . . . . . . Construction Impeded . | . . . . . . . Haulers Reinforced . | . . . . . . . Active Scanning Responses . | . . . . . . . Cargo Convoy Interrupts . | . . . . . . . Stealth | -11 -10 -10 -10 -9 -8 -7 --------- Run | Scr Mat Min Exi Min Mat Fac Distress Signals 3 | . . . . . 3 . Communications Jammed . | . . . . . . . Distress Signals . | . . . . . . . Times Spotted 75 | . 19 4 . 7 45 . Peak Tracking Total 6 | . 4 2 . 3 6 . Tactical Retreats 8 | . . . . . 8 . Traps | -11 -10 -10 -10 -9 -8 -7 ------- Run | Scr Mat Min Exi Min Mat Fac Traps Triggered 2 | . 2 . . . . . Indirectly . | . . . . . . . Trap Hack Attempts . | . . . . . . . Triggered . | . . . . . . . Disarmed . | . . . . . . . Reprogrammed . | . . . . . . . Reused . | . . . . . . . Traps Extracted . | . . . . . . . Installed . | . . . . . . . Triggered . | . . . . . . . Machines | -11 -10 -10 -10 -9 -8 -7 ---------- Run | Scr Mat Min Exi Min Mat Fac Machines Disabled 2 | . 1 . . . 1 . Max in Single Turn 1 | . 1 . . . 1 . Garrison Access 1 | . . . . . 1 . Machines Sabotaged . | . . . . . . . Overloaded Fab Kills . | . . . . . . . Hacking | -11 -10 -10 -10 -9 -8 -7 --------- Run | Scr Mat Min Exi Min Mat Fac Machines Accessed 15 | . 3 1 1 . 9 1 Terminals 9 | . 3 . . . 5 1 Fabricators . | . . . . . . . Repair Stations 1 | . . . . . 1 . Recycling Units . | . . . . . . . Scanalyzers 2 | . . . . . 2 . Garrison Access 1 | . . . . . 1 . Total Hacks 37 | . 7 1 4 . 22 3 Successful 25 | . 6 1 4 . 13 1 Failed 12 | . 1 . . . 9 2 Catastrophic 1 | . . . . . . 1 Database Lockouts . | . . . . . . . Manual 4 | . 1 . . . 2 1 Terminals 21 | . 7 . . . 11 3 Fabricators . | . . . . . . . Repair Stations 2 | . . . . . 2 . Recycling Units . | . . . . . . . Scanalyzers 8 | . . . . . 8 . Garrison Access 1 | . . . . . 1 . Terminal Hacks 18 | . 6 1 4 . 7 . Record 4 | . . . 4 . . . Robot Analysis 1 | . . . . . 1 . Prototype ID Bank 3 | . 1 . . . 2 . Open Door 1 | . . 1 . . . . Scanalyzer Index 1 | . . . . . 1 . Alert Level 1 | . . . . . 1 . Locate Traps 1 | . 1 . . . . . Dispatch Records 1 | . 1 . . . . . Hauler Manifests 1 | . 1 . . . . . Zone Layout 4 | . 2 . . . 2 . Fabricator Hacks . | . . . . . . . Repair Station Hacks 2 | . . . . . 2 . Scan Component 1 | . . . . . 1 . Repair 1 | . . . . . 1 . Recycling Unit Hacks . | . . . . . . . Scanalyzer 3 | . . . . . 3 . Insert Component 1 | . . . . . 1 . Analyze 2 | . . . . . 2 . Garrison Access Hacks 1 | . . . . . 1 . Seal Access 1 | . . . . . 1 . Unauthorized Hacks 1 | . . . . . . 1 Terminals 1 | . . . . . . 1 Botnet 1 | . . . . . . 1 Fabricators . | . . . . . . . Repair Stations . | . . . . . . . Recycling Units . | . . . . . . . Scanalyzers . | . . . . . . . Garrison Access . | . . . . . . . Data Cores Recovered 1 | . . . . . 1 . Used . | . . . . . . . Hacking Detections 6 | . 1 . . . 4 1 Full Trace Events 1 | . . . . . . 1 Feedback Events 1 | . . . . . . 1 Hackware Fried 1 | . . . . . . 1 Feedback Blocked . | . . . . . . . Robot Schematics Acquired . | . . . . . . . Robots Built . | . . . . . . . Authchips . | . . . . . . . Time . | . . . . . . . Total Robot Build Rating . | . . . . . . . Part Schematics Acquired . | . . . . . . . Parts Built . | . . . . . . . Authchips . | . . . . . . . Time . | . . . . . . . Total Part Build Rating . | . . . . . . . Parts Repaired 1 | . . . . . 1 . Time 16 | . . . . . 16 . Parts Recycled . | . . . . . . . Recycled Matter . | . . . . . . . Retrieved Matter . | . . . . . . . Retrieved Components . | . . . . . . . Parts Scanalyzed 1 | . . . . . 1 . Part Schematics Acquired . | . . . . . . . Parts Damaged . | . . . . . . . Bothacking | -11 -10 -10 -10 -9 -8 -7 ------------ Run | Scr Mat Min Exi Min Mat Fac Used RIF Installer . | . . . . . . . Robots Hacked . | . . . . . . . Non-combat . | . . . . . . . Combat . | . . . . . . . Robot Hacks Applied . | . . . . . . . Relay Couplers Released . | . . . . . . . Fabnet Peak Effective % . | . . . . . . . Robots Rewired . | . . . . . . . Allies Hacked . | . . . . . . . Hacks Repelled . | . . . . . . . Allies | -11 -10 -10 -10 -9 -8 -7 -------- Run | Scr Mat Min Exi Min Mat Fac Total Allies 3 | . . . . 3 . . Largest Group 3 | . . . . 3 2 . Highest-Rated Group 40 | . . . . 40 32 . Highest-Rated Ally 16 | . . . . 16 16 . Total Orders 4 | . . . . . 4 . FOLLOW 1 | . . . . . 1 . RETURN 3 | . . . . . 3 . Ally Attacks 57 | . . . . 39 18 . Total Damage 524 | . . . . 397 127 . Kills 9 | . . . . 8 1 . Allies Corrupted . | . . . . . . . Allies Melted . | . . . . . . . Intel | -11 -10 -10 -10 -9 -8 -7 ------- Run | Scr Mat Min Exi Min Mat Fac Robot Analysis Total 1 | . . . . . 1 . Derelict Logs Recovered 1 | . . . . 1 . . Drone Launches 9 | . . . . . 9 . Drone Recoveries 9 | . . . . . 9 . Exploration | -11 -10 -10 -10 -9 -8 -7 ------------- Run | Scr Mat Min Exi Min Mat Fac Turns Passed 4614 | 148 903 454 260 712 1978 159 Spaces Moved 2430 | 64 492 256 162 430 938 88 Core 3 | 3 . . . . . . Treads 2427 | 61 492 256 162 430 938 88 Legs . | . . . . . . . Wheels . | . . . . . . . Hover . | . . . . . . . Flight . | . . . . . . . Fastest Speed 50 | 50 160 160 160 160 155 152 Average Speed 159 | 154 160 160 160 160 159 152 Slowest Speed 160 | 160 160 160 160 160 160 155 Overloaded Moves . | . . . . . . . Propulsion Burnouts . | . . . . . . . Robots Hopped . | . . . . . . . Cave-ins Triggered . | . . . . . . . Exploration Rate (%) 50 | 5 94 60 53 72 68 1 Regions Visited 6 Branch Regions 3 Pre-discovered Areas 2 | . . . 1 1 . . Known Exits Taken . | . . . . . . . Unknown Exits Taken 6 | 1 1 1 1 1 1 . Scrap Searched 3 | . . 1 . 2 . . Spaces Dug 15 | . 3 . . . 12 . Terrain Destroyed 77 | . 49 16 . . 12 . Melee . | . . . . . . . Projectile . | . . . . . . . AOE 77 | . 49 16 . . 12 . Terrain Rammed . | . . . . . . . Walls Destroyed . | . . . . . . . Machines Disabled . | . . . . . . . Actions | -11 -10 -10 -10 -9 -8 -7 --------- Run | Scr Mat Min Exi Min Mat Fac Total 2865 | 88 564 280 163 443 1212 115 Wait 86 | . 1 9 . 3 61 12 Move 2424 | 63 491 255 161 429 937 88 Hop . | . . . . . . . Pick Up 41 | 6 18 1 . 2 14 . Fast Attach 25 | 7 2 . . . 12 4 Attach 6 | . 1 1 . . 4 . Detach 4 | . 1 . . . . 3 Swap 32 | . 9 2 1 . 20 . Drop 60 | . 12 . 1 2 37 8 Fire 183 | 12 29 12 . 7 123 . Melee . | . . . . . . . Ram . | . . . . . . . Kick . | . . . . . . . Crush 4 | . . . . . 4 . Escape Stasis . | . . . . . . . Rewire . | . . . . . . . Trap . | . . . . . . . Miscellaneous . | . . . . . . . Route ------- -11/Scrapyard -10/Materials (discovered 3 exits: [*Mat x2] / *Min) -10/Mines -10/Exiles -9/Mines -8/Materials (discovered 2 exits: *Fac x2) -7/Factory History --------- Turn | Location | Event 49 | -11/Scrapyard | Discovered new exit (range 14) 149 | -11/Scrapyard | Entered Materials 302 | -10/Materials | Build established: Mutant 472 | -10/Materials | Discovered new exit (range 3) 655 | -10/Materials | Discovered new exit (range 3) 893 | -10/Materials | Discovered new exit (range 12) 1052 | -10/Materials | Entered Mines 1189 | -10/Mines | Assembled infested the area 1263 | -10/Mines | Found the Drone Emporium 1270 | -10/Mines | Found Prototype Device 1500 | -10/Mines | Discovered new exit (range 5) 1506 | -10/Mines | Entered Exiles 1546 | -10/Exiles | Met 8R-AWN 1574 | -10/Exiles | Met EX-HEX 1631 | -10/Exiles | Met EX-BIN 1655 | -10/Exiles | Met EX-DEC 1662 | -10/Exiles | Learned location of Zion (-7) 1746 | -10/Exiles | Discovered new exit (range 14) 1766 | -10/Exiles | Entered Mines 1767 | -9/Mines | Learned location of Storage (-9) 1928 | -9/Mines | Discovered new exit (range 6) 1938 | -9/Mines | Assisted by bots powering up and referring to "LRC-V3" 2027 | -9/Mines | Learned 4 Materials zone layouts 2201 | -9/Mines | Found a damaged Exp. Sensor Array with a note attached 2205 | -9/Mines | Found Prototype Device 2288 | -9/Mines | Excavation squad dispatched 2288 | -9/Mines | A large section of the Mines collapsed 2478 | -9/Mines | Entered Materials 2478 | -8/Materials | Accompanied by 2 allies 2478 | -8/Materials | Evolved 4 slots: Propulsion x1, Utility x3 2480 | -8/Materials | Identified Exp. Sensor Array 2481 | -8/Materials | Identified Thief Drone Bay 3175 | -8/Materials | Discovered new exit (range 3) 3436 | -8/Materials | Repaired Imp. Treads 3972 | -8/Materials | Discovered new exit (range 16) 4456 | -8/Materials | Entered Factory 4456 | -7/Factory | Evolved 2 slots: Propulsion x1, Utility x1 4533 | -7/Factory | System Shield fried by hacking feedback 4584 | -7/Factory | Found Scrap Engine 4615 | -7/Factory | Self-destructed Last Messages --------------- Awaiting botnet instructions. Feedback: System Shield fried. 04533_ ALERT: Suspicious activity at Terminal F017. Dispatching Investigation squad. 04583_ Dropped Imp. Light Armor Plating. 04584_ Acquired Scrap Engine. 04585_ Dropped Lrg. Matter Pod. 04587_ Acquired Imp. Light Armor Plating. 04589_ Extracted 10 matter. 04592_ Dropped Imp. Deuterium Engine. 04593_ Scrap Engine consumes Imp. Deuterium Engine. 04593_ Dropped Imp. Treads. 04594_ Scrap Engine consumes Imp. Treads. 04594_ Dropped Imp. Treads. 04595_ Scrap Engine consumes Imp. Treads. 04595_ Dropped Imp. Treads. 04596_ Scrap Engine consumes Imp. Treads. 04606_ Dropped Imp. Light Armor Plating. 04609_ Scrap Engine consumes Imp. Light Armor Plating. 04614_ Discarded Scrap Engine. Map ----- +----------------------------------------------------+ | ??????????????????????????????????????????????? | | ??????????????????????????????????????????????? | | ??????????????????????????????????????????????? | | ??????????????????????????????????????????????? | | ??????????????????????????????????????????????? | | ????????????"?????????????????????????????????? | | ???????????? ?????????????????????????????????? | | ???????????? ?????????????????????????????????? | | ???????????? ?????????????????????????????????? | | ???????????# ?????????????????????????????????? | | ???????????# ?????????????????????????????????? | | ??##+###???# ?????????????????????????????????? | | ??? ???# #????????????????????????????????? | | ??? ??# #????????????????????????????????? | | ???? ??+ #???##########???????????????????? | | ????"""" ?# #???# ???????????????????? | | ????"""" ?# ##### ???????????????????? | | ????"""" # # #??????????????????? | | # """" # # """"""" #??????????????????? | | # + + """"""" #??????????????????? | | # """" # # """"""" #??????????????????? | | ????"""" # # """"""" #??????????????????? | | ????"""" ?# # #??????????????????? | | ????"""" ?# #####+#####??????????????????? | | ???? ??# #???????????????????? | | ??? ??# @ #???????????????????? | | ??? ???# ! #???????????????????? | | ??######???# #???????????????????? | | ???????????# #???????????????????? | | ???????########+######+#####??????????????????? | | ???????# # #??????????????????? | | ???????# # #??????????????????? | | ???????# ! # #??????????????????? | | ???????# # """ """ #??????????????????? | | ???????# """ # """ """ #??????????????????? | | ???????# """ # """ """ #??????????????????? | | ???????# == """ # #??????????????????? | | ???????# == # """T""" #??????????????????? | | ???????#####################??????????????????? | | ??????????????????????????????????????????????? | | ??????????????????????????????????????????????? | | ??????????????????????????????????????????????? | | ??????????????????????????????????????????????? | | ??????????????????????????????????????????????? | | ??????????????????????????????????????????????? | | ??????????????????????????????????????????????? | | ??????????????????????????????????????????????? | | ??????????????????????????????????????????????? | | ??????????????????????????????????????????????? | | ??????????????????????????????????????????????? | +----------------------------------------------------+ Best States ------------- Heat Dissipation 48 Energy Generation 16 Energy Capacity 290 Matter Stores 450 Matter Capacity 450 Sight Range 16 Terrain Scan Range 16 Terrain Scan Density 10 Armor Coverage 300 Evasion (%) 40 Recoil Reduction 4 Defensive Hacking 10 Item Schematics ----------------- None Robot Schematics ------------------ None Fabricated ------------ Nothing Alien Tech Used ----------------- None Achievements -------------- None Challenges ------------ None Game ------ Seed AlertBattleBuckler Manual? 0 Play Time 00:27:33 Cumulative 520.8 hours Start 2022.09.21 @ 15:57:45 End 2022.09.22 @ 11:20:47 Sessions 1 Manual Loads 0 Difficulty Rogue Special Mode None Game No. 586 Rogue 585 Adventurer 0 Explorer 1 Win Type - Total 19 Types 13/0/3/3/0/0/0/0/0 Lore% 80 Gallery% 90 Achievement% 73 Wizard Run 0 Options --------- ASCII 0 Keyboard 1 Movement Vi Keybinds 0 Fullscreen 1 Font 18/SmallcapsGlow Map View 76x50 Tactical HUD 1 Map Filters NONE Filters NONE Steam 1 RUN: bcda5f31-5a5f-423a-bc6a-2b36798f5fff